bitfinex/quotes_SOLUSD_20250416
["timestamp","ask_amount","ask_price","bid_price","bid_amount"]
[1744808960524,19.68076167,125.32,125.29,7.98087886]
[1744808960700,19.68076167,125.31,125.29,7.98087886]
[1744808961020,19.68076167,125.32,125.27,27.66351891]
[1744808961320,19.68076167,125.32,125.27,47.62041202]
[1744808961617,32.3083,125.34,125.28,19.68076167]
[1744808961824,19.68076167,125.33,125.27,27.93965035]
[1744808962004,45.68076167,125.34,125.29,19.68076167]
[1744808962315,18.64964886,125.33,125.27,47.62041202]
[1744808962499,19.68076167,125.32,125.27,47.62041202]
[1744808962913,36.58,125.34,125.29,47.61595201]
[1744808963114,56.26076167,125.34,125.3,19.68076167]
[1744808963420,36.58,125.34,125.3,19.68076167]
[1744808964822,56.26076167,125.34,125.29,27.93519034]
[1744808965008,56.26076167,125.34,125.29,47.61595201]
[1744808966025,36.58,125.34,125.29,47.61595201]
[1744808966322,56.26076167,125.34,125.29,47.61595201]
[1744808966725,36.58,125.34,125.29,47.61595201]
[1744808966909,56.26076167,125.34,125.29,47.61595201]
[1744808967112,36.58,125.34,125.3,19.68076167]
[1744808967312,36.58,125.34,125.31,19.68076167]
[1744808968032,36.58,125.34,125.3,19.68076167]
[1744808968433,36.58,125.34,125.29,27.93519034]
[1744808968633,19.68076167,125.33,125.29,27.93519034]
[1744808968831,36.58,125.34,125.3,19.68076167]
[1744808969046,10.58,125.34,125.31,19.68076167]
[1744808969334,10.58,125.34,125.32,7.97957229]
[1744808970010,10.58,125.34,125.32,27.66033396]
[1744808971332,10.58,125.34,125.31,19.95047701]
[1744808973637,10.58,125.34,125.31,27.93068609]
[1744808974816,10.58,125.34,125.31,47.61144776]
[1744808975438,19.68076167,125.35,125.31,47.61144776]
[1744808975940,19.68076167,125.35,125.31,27.93068609]
[1744808977316,45.68076167,125.36,125.31,47.61144776]
[1744808979237,1.5979,125.39,125.35,19.68076167]
[1744808979445,38.33041053,125.4,125.35,19.68076167]
[1744808979647,64.33041053,125.4,125.35,19.68076167]
[1744808979847,38.33041053,125.4,125.35,19.68076167]
[1744808980047,64.33041053,125.4,125.36,7.97702616]
[1744808981131,19.68076167,125.38,125.36,7.97702616]
[1744808982365,44.64964886,125.4,125.36,7.97702616]
[1744808982572,19.68076167,125.39,125.36,7.97702616]
[1744808982961,45.68076167,125.4,125.36,7.97702616]
[1744808983366,19.68076167,125.39,125.36,7.97702616]
[1744808985159,19.68076167,125.39,125.35,27.92091809]
[1744808987386,19.68076167,125.39,125.3,1.5447]
[1744808987387,19.68076167,125.37,125.3,1.5447]
[1744808987676,26.0,125.37,125.3,21.22546167]
[1744808987879,26.0,125.37,125.32,19.68076167]
[1744808988065,26.0,125.37,125.33,19.68076167]
[1744808988267,19.68076167,125.38,125.33,19.68076167]
[1744808988471,26.0,125.39,125.35,19.68076167]
[1744808989182,26.0,125.39,125.36,7.97702616]
[1744808989671,19.68076167,125.37,125.36,7.97702616]
[1744808990888,19.68076167,125.38,125.34,27.92404658]
[1744808991182,12.5963633,125.38,125.34,27.92404658]
[1744808991383,38.5963633,125.39,125.34,40.52040988]
[1744808992279,38.5963633,125.39,125.35,12.5963633]
[1744808992481,38.5963633,125.39,125.36,7.97702616]
[1744808992873,26.0,125.39,125.36,7.97702616]
[1744808995795,45.6753444,125.39,125.36,7.97702616]
[1744808996963,26.0,125.39,125.36,7.97702616]
[1744808997297,26.0,125.39,125.36,47.59493597]
[1744808997991,19.6753444,125.42,125.37,19.6753444]
[1744808998160,26.0,125.41,125.37,19.6753444]
[1744808998685,26.0,125.41,125.38,7.9757537]
[1744808998987,45.6753444,125.41,125.38,7.9757537]
[1744809000479,19.6753444,125.4,125.38,7.9757537]
[1744809000826,19.6753444,125.4,125.36,27.91959157]
[1744809001672,45.6753444,125.41,125.36,47.59493597]
[1744809001986,26.0,125.41,125.37,19.6753444]
[1744809002867,26.0,125.41,125.38,7.9757537]
[1744809003370,26.0,125.41,125.39,19.6753444]
[1744809003689,26.0,125.41,125.38,47.59048237]
[1744809003882,19.6753444,125.43,125.39,19.6753444]
[1744809004289,19.6753444,125.42,125.38,27.91513797]
[1744809004703,19.6753444,125.4,125.38,7.9757537]
[1744809005004,19.6753444,125.4,125.37,7.97638988]
[1744809005976,7.97261453,125.43,125.37,27.91736459]
[1744809006179,20.17364886,125.45,125.4,19.6753444]
[1744809006381,19.6753444,125.46,125.41,19.6753444]
[1744809006588,26.0,125.46,125.41,19.6753444]
[1744809006905,19.6753444,125.45,125.41,19.6753444]
[1744809007282,19.6753444,125.45,125.42,7.97321001]
[1744809008577,26.0,125.46,125.42,7.97321001]
[1744809008876,19.6753444,125.45,125.42,7.97321001]
[1744809009072,45.6753444,125.46,125.42,7.97321001]
[1744809012899,19.6753444,125.45,125.42,7.97321001]
[1744809013600,19.6753444,125.43,125.38,19.93895249]
[1744809013799,26.0,125.46,125.4,19.6753444]
[1744809013993,19.6753444,125.45,125.4,19.6753444]
[1744809014581,45.6753444,125.46,125.41,27.64919018]
[1744809014988,45.6753444,125.46,125.41,47.58380464]
[1744809018886,26.0,125.46,125.42,19.6753444]
[1744809019690,45.6753444,125.46,125.41,27.90846024]
[1744809019892,45.6753444,125.46,125.41,47.58380464]
[1744809020708,19.6753444,125.45,125.41,47.58380464]
[1744809020908,45.6753444,125.46,125.41,47.58380464]
[1744809021509,19.6753444,125.45,125.41,27.90846024]
[1744809021709,19.6753444,125.44,125.41,27.90846024]
[1744809023209,19.6753444,125.45,125.41,27.90846024]
[1744809029300,33.97021984,125.47,125.41,27.90846024]
[1744809029500,12.58236034,125.45,125.41,27.90846024]
[1744809030211,12.58236034,125.45,125.41,7.97384578]
[1744809030820,12.58236034,125.46,125.41,20.55620612]
[1744809031517,33.97021984,125.47,125.41,20.55620612]
[1744809031824,12.58236034,125.46,125.41,20.55620612]
[1744809033933,26.0,125.47,125.43,12.58236034]
[1744809034107,1.5878,125.52,125.46,12.58236034]
[1744809034419,38.58236034,125.51,125.46,12.58236034]
[1744809034998,12.58236034,125.5,125.45,12.58236034]
[1744809035501,12.58236034,125.5,125.46,7.97066794]
[1744809038226,12.58236034,125.5,125.46,20.55302828]
[1744809039527,12.58236034,125.5,125.46,7.97066794]
[1744809041428,26.0,125.51,125.46,7.97066794]
[1744809041731,12.58236034,125.5,125.46,7.97066794]
[1744809042518,12.58236034,125.47,125.43,7.97257434]
[1744809042719,12.58236034,125.46,125.43,7.97257434]
[1744809045130,33.96947144,125.48,125.43,7.97257434]
[1744809045305,12.58236034,125.46,125.43,7.97257434]
[1744809046330,33.96947144,125.48,125.43,7.97257434]
[1744809046331,12.58236034,125.47,125.43,20.55493468]
[1744809049033,12.58236034,125.47,125.43,7.97257434]
[1744809049432,12.58236034,125.45,125.41,7.97384578]
[1744809049721,12.58236034,125.44,125.41,7.97384578]
[1744809050231,12.58236034,125.45,125.41,7.97384578]
[1744809050433,12.58236034,125.46,125.42,12.58236034]
[1744809050726,12.58236034,125.47,125.42,12.58236034]
[1744809050934,12.58236034,125.46,125.41,40.49082058]
[1744809051714,12.58236034,125.46,125.42,12.58236034]
[1744809051918,12.58236034,125.47,125.43,12.58236034]
[1744809052135,12.58236034,125.47,125.42,12.58236034]
[1744809052318,12.58236034,125.47,125.43,7.97257434]
[1744809052519,12.58236034,125.47,125.43,20.55493468]
[1744809053236,38.58236034,125.48,125.43,20.55493468]
[1744809053421,12.58236034,125.47,125.43,20.55493468]
[1744809054918,12.58236034,125.47,125.43,7.97257434]
[1744809055336,38.58236034,125.48,125.43,20.55493468]
[1744809055530,26.0,125.48,125.44,12.58236034]
[1744809055711,38.58236034,125.48,125.44,12.58236034]
[1744809056636,38.58236034,125.48,125.45,7.9713033]
[1744809058042,26.0,125.48,125.45,7.9713033]
[1744809058339,38.58236034,125.48,125.45,7.9713033]
[1744809060139,38.08236034,125.48,125.45,7.9713033]
[1744809060719,12.58236034,125.5,125.45,20.55366364]
[1744809060919,12.58236034,125.5,125.46,12.58236034]
[1744809061136,12.58236034,125.51,125.46,12.58236034]
[1744809061336,12.58236034,125.49,125.45,7.9713033]
[1744809061843,12.58236034,125.46,125.41,19.93389684]
[1744809062028,12.58236034,125.44,125.42,7.97321001]
[1744809062741,12.58236034,125.44,125.41,7.97384578]
[1744809063133,12.58236034,125.43,125.41,7.97384578]
[1744809064747,12.58236034,125.45,125.4,20.55684199]
[1744809065236,38.58236034,125.46,125.41,12.58236034]
[1744809065444,38.58236034,125.46,125.42,12.58236034]
[1744809065641,7.8247,125.53,125.45,12.58236034]
[1744809065817,1.5332,125.53,125.47,12.58236034]
[1744809066143,12.58236034,125.54,125.49,12.58236034]
[1744809066339,26.0,125.53,125.49,12.58236034]
[1744809066822,12.58236034,125.53,125.49,20.55066735]
[1744809067222,45.63414846,125.53,125.49,27.60245547]
[1744809067433,53.60038763,125.53,125.49,27.60245547]
[1744809068637,53.60038763,125.53,125.48,27.60354597]
[1744809070044,53.60038763,125.53,125.48,7.96939751]
[1744809070244,53.60038763,125.53,125.48,27.60354597]
[1744809071439,45.63414846,125.53,125.48,27.60354597]
[1744809073145,45.63414846,125.55,125.5,19.63414846]
[1744809073342,21.16734846,125.56,125.52,7.96685787]
[1744809073534,19.63414846,125.55,125.52,7.96685787]
[1744809073937,19.63414846,125.55,125.51,19.63414846]
[1744809074136,19.63414846,125.55,125.49,19.92090323]
[1744809074137,19.63414846,125.55,125.5,27.60227595]
[1744809076227,33.96437114,125.56,125.51,19.63414846]
[1744809076432,19.63414846,125.55,125.51,19.63414846]
[1744809076640,26.0,125.56,125.52,19.63414846]
[1744809076831,26.0,125.56,125.53,19.63414846]
[1744809077047,26.0,125.56,125.52,19.63414846]
[1744809077653,45.63414846,125.56,125.52,27.60041083]
[1744809078252,26.0,125.56,125.52,27.60041083]
[1744809078453,19.63414846,125.58,125.53,19.63414846]
[1744809078651,45.63414846,125.58,125.53,19.63414846]
[1744809079150,45.63414846,125.58,125.52,29.47910704]
[1744809079356,19.63414846,125.58,125.53,19.63414846]
[1744809079555,19.63414846,125.58,125.54,19.63414846]
[1744809079743,19.63414846,125.58,125.55,7.9649542]
[1744809080258,26.0,125.59,125.55,7.9649542]
[1744809080459,45.63414846,125.59,125.55,27.59910266]
[1744809080867,19.63414846,125.59,125.55,27.59910266]
[1744809081167,7.9621058,125.6,125.55,27.59910266]
[1744809081536,33.9621058,125.6,125.55,7.9649542]
[1744809081865,19.63414846,125.58,125.55,7.9649542]
[1744809083853,19.63414846,125.58,125.54,19.63414846]
[1744809084040,27.59744115,125.58,125.53,27.60023689]
[1744809084241,19.63414846,125.57,125.53,7.96608843]
[1744809084444,19.63414846,125.57,125.53,27.60023689]
[1744809084946,19.63414846,125.58,125.53,27.60023689]
[1744809085146,19.63414846,125.57,125.53,27.60023689]
[1744809085739,27.59729508,125.58,125.53,27.60023689]
[1744809086054,19.63414846,125.58,125.53,27.60023689]
[1744809086734,7.96274667,125.59,125.54,19.63414846]
[1744809087036,27.59689513,125.59,125.54,19.63414846]
[1744809087654,19.63414846,125.59,125.55,19.63414846]
[1744809087859,27.59657823,125.59,125.55,19.63414846]
[1744809088062,45.63414846,125.6,125.56,7.96431984]
[1744809088244,53.59595304,125.6,125.56,7.96431984]
[1744809088649,33.96180458,125.6,125.56,7.96431984]
[1744809088849,53.59595304,125.6,125.56,7.96431984]
[1744809089051,26.0,125.6,125.56,7.96431984]
[1744809089365,12.55259999,125.59,125.56,7.96431984]
[1744809090357,26.0,125.56,125.49,7.96876245]
[1744809090563,12.55259999,125.52,125.49,7.96876245]
[1744809090752,12.55259999,125.53,125.49,7.96876245]
[1744809091971,26.0,125.54,125.49,7.96876245]
[1744809092165,38.55259999,125.54,125.5,12.55259999]
[1744809093759,38.55259999,125.54,125.49,20.52136244]
[1744809094954,12.55259999,125.53,125.49,20.52136244]
[1744809096752,38.55259999,125.54,125.49,20.52136244]
[1744809098073,12.55259999,125.55,125.51,12.55259999]
[1744809098251,26.0,125.55,125.51,12.55259999]
[1744809098563,38.55259999,125.55,125.52,7.96685787]
[1744809098953,12.55259999,125.54,125.52,7.96685787]
[1744809099545,12.55259999,125.54,125.51,7.96714409]
[1744809099958,38.55259999,125.55,125.51,7.96714409]
[1744809100357,12.55259999,125.54,125.51,7.96714409]
[1744809100960,12.55259999,125.52,125.46,7.97066794]
[1744809101159,12.55259999,125.49,125.46,7.97066794]
[1744809102469,68.86004882,125.51,125.45,7.97094907]
[1744809102675,12.55259999,125.48,125.45,7.97094907]
[1744809102879,12.55259999,125.48,125.44,7.97193877]
[1744809103169,19.65099527,125.48,125.44,7.97193877]
[1744809104762,19.65099527,125.47,125.44,7.97193877]
[1744809105357,19.65099527,125.48,125.44,27.62293404]
[1744809106065,19.65099527,125.48,125.44,7.97193877]
[1744809106647,19.65099527,125.47,125.44,7.97193877]
[1744809106861,19.65099527,125.48,125.44,7.97193877]
[1744809107463,26.0,125.49,125.44,27.62293404]
[1744809107846,19.65099527,125.48,125.44,27.62293404]
[1744809108864,19.65099527,125.48,125.44,7.97193877]
[1744809109069,19.65099527,125.47,125.44,7.97193877]
[1744809109370,19.65099527,125.46,125.44,7.97193877]
[1744809109565,19.65099527,125.47,125.43,7.97257434]
[1744809112668,19.65099527,125.46,125.43,7.97257434]
[1744809112880,7.96939751,125.48,125.42,27.62420528]
[1744809113179,19.65099527,125.47,125.42,47.55723031]
[1744809113684,19.65099527,125.46,125.42,7.97321001]
[1744809113858,19.65099527,125.46,125.42,27.62420528]
[1744809115169,19.65099527,125.47,125.43,19.65099527]
[1744809116270,19.65099527,125.46,125.42,27.90623504]
[1744809116456,19.65099527,125.46,125.42,7.97321001]
[1744809116655,19.65099527,125.46,125.42,27.62420528]
[1744809117972,33.96959111,125.48,125.42,27.62420528]
[1744809118154,19.65099527,125.47,125.42,27.62420528]
[1744809118355,19.65099527,125.47,125.43,19.65099527]
[1744809118651,19.65099527,125.46,125.41,7.97384578]
[1744809118850,19.65099527,125.44,125.41,7.97384578]
[1744809119656,19.65099527,125.42,125.37,19.93973849]
[1744809119856,19.65099527,125.39,125.36,7.97702616]
[1744809120059,26.0,125.41,125.35,7.97766254]
[1744809120060,19.65099527,125.38,125.35,7.97766254]
[1744809120586,19.65099527,125.37,125.33,7.9789356]
[1744809120960,19.65099527,125.36,125.33,7.9789356]
[1744809121373,19.65099527,125.35,125.32,7.97931581]
[1744809122383,19.65099527,125.36,125.32,7.97931581]
[1744809123268,33.97596285,125.38,125.32,27.63031108]
[1744809123467,19.65099527,125.36,125.32,7.97931581]
[1744809123869,26.0,125.36,125.33,19.65099527]
[1744809124460,26.0,125.36,125.32,47.57924181]
[1744809125677,26.0,125.36,125.32,27.92824654]
[1744809125908,19.65099527,125.35,125.32,7.97931581]
[1744809126895,19.65099527,125.34,125.31,7.98020908]
[1744809127095,33.97713722,125.36,125.31,7.98020908]
[1744809127096,19.65099527,125.33,125.31,7.98020908]
[1744809127888,19.65099527,125.33,125.3,7.98084596]
[1744809128572,18.79181043,125.35,125.3,7.98084596]
[1744809128778,19.65099527,125.33,125.3,7.98084596]
[1744809128999,19.65099527,125.33,125.29,7.98148295]
[1744809131491,19.65099527,125.35,125.3,19.65099527]
[1744809131680,19.65099527,125.34,125.3,19.65099527]
[1744809132695,19.65099527,125.33,125.29,7.98148295]
[1744809133699,26.62751994,125.35,125.29,27.63247822]
[1744809133903,19.65099527,125.33,125.29,27.63247822]
[1744809134684,26.0,125.36,125.29,47.58618561]
[1744809134685,33.97735854,125.36,125.29,47.58618561]
[1744809134896,19.65099527,125.34,125.3,19.65099527]
[1744809136306,19.65099527,125.34,125.31,7.98020908]
[1744809137305,9.59341654,125.38,125.31,47.58172705]
[1744809137604,26.0,125.36,125.33,19.65099527]
[1744809137802,26.0,125.36,125.32,19.65099527]
[1744809138383,26.0,125.36,125.33,7.9789356]
[1744809142391,38.59950468,125.36,125.33,7.9789356]
[1744809142591,26.0,125.35,125.33,7.9789356]
[1744809143208,26.0,125.35,125.32,7.97957229]
[1744809143414,26.0,125.35,125.32,40.5280077]
[1744809143993,26.0,125.35,125.32,27.92850302]
[1744809144507,38.59950468,125.35,125.32,7.97957229]
[1744809145513,38.59950468,125.35,125.31,7.98020908]
[1744809145713,12.59950468,125.34,125.31,7.98020908]
[1744809145924,12.59950468,125.33,125.31,7.98020908]
[1744809146609,12.59950468,125.33,125.3,7.98084596]
[1744809146818,33.97792847,125.35,125.3,7.98084596]
[1744809146819,12.59950468,125.32,125.3,7.98084596]
[1744809149122,12.59950468,125.33,125.29,7.98148295]
[1744809149326,7.97832369,125.34,125.29,20.58098763]
[1744809149515,12.59950468,125.33,125.29,20.58098763]
[1744809150423,12.59950468,125.33,125.29,7.98148295]
[1744809151921,12.59950468,125.33,125.29,20.58098763]
[1744809154513,7.97832369,125.34,125.29,20.58098763]
[1744809154712,12.59950468,125.33,125.29,20.58098763]
[1744809155428,12.59950468,125.33,125.29,7.98148295]
[1744809156125,12.59950468,125.32,125.29,7.98148295]
[1744809156509,12.59950468,125.31,125.29,7.98148295]
[1744809157013,12.59950468,125.33,125.29,20.58098763]
[1744809157425,12.59950468,125.34,125.3,12.59950468]
[1744809158631,12.59950468,125.34,125.31,7.98020908]
[1744809159427,26.0,125.35,125.31,7.98020908]
[1744809159635,19.93686788,125.4,125.33,12.59950468]
[1744809159636,12.59950468,125.37,125.33,12.59950468]
[1744809159820,250.4193,125.41,125.34,12.59950468]
[1744809160020,12.59950468,125.39,125.35,12.59950468]
[1744809160214,26.0,125.39,125.35,12.59950468]
[1744809160410,20.57398633,125.4,125.35,12.59950468]
[1744809160941,26.0,125.39,125.36,7.97702616]
[1744809161515,38.59950468,125.39,125.36,7.97702616]
[1744809162518,38.59950468,125.39,125.35,7.97766254]
[1744809163125,45.67984956,125.39,125.35,7.97766254]
[1744809164733,45.67984956,125.39,125.35,27.6575121]
[1744809164926,26.0,125.39,125.35,27.6575121]
[1744809165115,45.67984956,125.39,125.35,27.6575121]
[1744809165322,26.0,125.39,125.35,27.6575121]
[1744809165714,45.67984956,125.39,125.35,27.6575121]
[1744809170125,26.0,125.39,125.35,27.6575121]
[1744809170431,45.67984956,125.39,125.35,27.6575121]
[1744809170934,19.67984956,125.39,125.35,27.6575121]
[1744809171715,27.65497591,125.39,125.35,27.6575121]
[1744809172218,19.67984956,125.39,125.35,27.6575121]
[1744809172741,19.67984956,125.37,125.31,45.94983809]
[1744809172932,26.76715459,125.39,125.32,7.97957229]
[1744809173232,27.65519372,125.39,125.34,19.67984956]
[1744809173638,19.67984956,125.38,125.33,19.67984956]
[1744809173824,19.67984956,125.37,125.33,19.67984956]
[1744809174728,19.67984956,125.36,125.33,7.97857704]
[1744809175416,7.97534416,125.39,125.33,7.97857704]
[1744809175417,18.79181043,125.38,125.33,7.97857704]
[1744809175615,19.67984956,125.37,125.33,7.97857704]
[1744809175815,27.65630131,125.37,125.33,7.97857704]
[1744809176023,19.67984956,125.37,125.33,7.97857704]
[1744809177445,45.67984956,125.4,125.35,19.67984956]
[1744809178040,19.67984956,125.39,125.35,19.67984956]
[1744809178741,19.67984956,125.39,125.36,7.97702616]
[1744809179354,45.67984956,125.4,125.36,7.97702616]
[1744809179839,53.65433911,125.4,125.36,7.97702616]
[1744809180041,19.67984956,125.39,125.36,7.97702616]
[1744809180636,26.0,125.4,125.36,7.97702616]
[1744809180847,45.67984956,125.4,125.36,7.97702616]
[1744809181222,19.67984956,125.41,125.37,19.67984956]
[1744809181638,19.67984956,125.41,125.36,47.59944113]
[1744809182230,1.5841,125.44,125.4,19.67984956]
[1744809182422,19.67984956,125.44,125.39,19.67984956]
[1744809182622,45.67984956,125.43,125.4,7.97448165]
[1744809183632,26.0,125.43,125.4,7.97448165]
[1744809183945,45.67984956,125.43,125.4,7.97448165]
[1744809185250,38.5862757,125.43,125.4,7.97448165]
[1744809185749,38.5862757,125.43,125.39,7.9748017]
[1744809185954,12.5862757,125.42,125.39,7.9748017]
[1744809186436,38.5862757,125.43,125.39,7.9748017]
[1744809187925,46.55885396,125.43,125.39,7.9748017]
[1744809188128,26.0,125.43,125.39,20.5610774]
[1744809189849,38.5862757,125.43,125.38,12.5862757]
[1744809190543,12.5862757,125.42,125.37,32.52625849]
[1744809190747,12.5862757,125.41,125.36,20.56330186]
[1744809191056,33.97268241,125.43,125.36,20.56330186]
[1744809191233,12.5862757,125.42,125.37,12.5862757]
[1744809191540,38.5862757,125.43,125.38,12.5862757]
[1744809191929,12.5862757,125.42,125.39,7.97511763]
[1744809193026,12.5862757,125.41,125.38,7.9757537]
[1744809194049,12.5862757,125.41,125.37,7.97638988]
[1744809194247,12.5862757,125.39,125.36,7.97667428]
[1744809194445,12.5862757,125.38,125.35,9.63863996]
[1744809195148,12.5862757,125.36,125.32,19.94881586]
[1744809195540,12.5862757,125.37,125.32,32.53509156]
[1744809195942,12.5862757,125.36,125.32,19.94881586]
[1744809196142,12.5862757,125.36,125.32,7.97957229]
[1744809196340,7.97660889,125.37,125.32,7.97957229]
[1744809196657,12.5862757,125.36,125.32,7.97957229]
[1744809197170,12.5862757,125.36,125.32,20.56584799]
[1744809197851,12.5862757,125.35,125.32,7.97957229]
[1744809198043,12.5862757,125.34,125.31,15.53864255]
[1744809198241,12.5862757,125.34,125.31,9.52494255]
[1744809198751,12.5862757,125.34,125.31,1.545]
[1744809198958,20.56460571,125.34,125.31,1.545]
[1744809199336,12.5862757,125.33,125.3,7.98058599]
[1744809200257,12.5862757,125.33,125.29,7.98148295]
[1744809201154,20.56466884,125.34,125.29,20.56775865]
[1744809201459,33.97839314,125.34,125.29,7.98148295]
[1744809201647,12.5862757,125.33,125.29,7.98148295]
[1744809204642,12.5862757,125.33,125.29,20.56775865]
[1744809206468,26.0,125.36,125.31,12.5862757]
[1744809206772,26.0,125.36,125.29,27.93519034]
[1744809206773,26.0,125.36,125.33,12.5862757]
[1744809207175,46.56356262,125.36,125.32,7.97913782]
[1744809207770,12.5862757,125.35,125.32,7.97913782]
[1744809208377,26.0,125.36,125.32,20.56541352]
[1744809208870,33.97705509,125.36,125.32,20.56541352]
[1744809209972,46.56333079,125.36,125.32,7.97913782]
[1744809211362,12.5862757,125.35,125.31,20.56613969]
[1744809214066,46.56333079,125.36,125.31,20.56613969]
[1744809215181,26.0,125.36,125.32,12.5862757]
[1744809215348,38.5862757,125.36,125.31,20.56613969]
[1744809216365,26.0,125.36,125.32,12.5862757]
[1744809216667,26.0,125.36,125.33,12.5862757]
[1744809216966,26.0,125.36,125.32,14.1621757]
[1744809217548,26.0,125.36,125.33,7.9789356]
[1744809218769,26.0,125.36,125.32,14.1621757]
[1744809218770,38.5862757,125.36,125.32,9.55511478]
[1744809219370,26.0,125.36,125.32,22.14139048]
[1744809219549,26.0,125.36,125.33,12.5862757]
[1744809221788,26.0,125.36,125.33,20.56471011]
[1744809221966,26.0,125.36,125.33,7.97843441]
[1744809224774,26.0,125.36,125.33,20.56471011]
[1744809226576,26.0,125.36,125.33,7.97843441]
[1744809226776,46.56341968,125.36,125.29,21.55140739]
[1744809227077,46.56341968,125.36,125.31,12.5862757]
[1744809227279,26.0,125.36,125.32,12.5862757]
[1744809228982,26.0,125.36,125.29,29.53289034]
[1744809229176,46.56341151,125.36,125.31,12.5862757]
[1744809229472,12.5862757,125.33,125.29,7.98148295]
[1744809229673,12.5862757,125.32,125.28,7.98178348]
[1744809230582,44.79181043,125.32,125.22,7.7994]
[1744809230766,18.79181043,125.3,125.23,7.98530703]
[1744809230964,12.5862757,125.28,125.23,20.57158273]
[1744809231475,12.5862757,125.29,125.25,12.5862757]
[1744809231668,12.5862757,125.3,125.25,12.5862757]
[1744809231973,12.5862757,125.29,125.25,12.5862757]
[1744809233359,12.5862757,125.3,125.26,7.98339453]
[1744809234163,33.97985761,125.32,125.25,7.98375458]
[1744809234164,12.5862757,125.29,125.25,7.98375458]
[1744809236066,12.5862757,125.29,125.25,20.57003028]
[1744809236474,12.5862757,125.3,125.25,20.57003028]
[1744809238758,26.0,125.32,125.29,12.5862757]
[1744809238982,6.4,125.36,125.31,12.5862757]
[1744809239183,12.5862757,125.37,125.32,12.5862757]
[1744809239384,20.56273698,125.37,125.32,12.5862757]
[1744809239682,38.5862757,125.36,125.32,12.5862757]
[1744809239884,38.5862757,125.36,125.33,7.9789356]
[1744809240666,38.5862757,125.36,125.32,7.97957229]
[1744809240866,12.5862757,125.35,125.32,7.97957229]
[1744809241376,12.5862757,125.33,125.31,7.97994352]
[1744809241583,12.5862757,125.34,125.31,7.97994352]
[1744809241965,12.5862757,125.34,125.3,7.98084596]
[1744809246693,12.5862757,125.33,125.3,7.98084596]
[1744809247186,12.5862757,125.33,125.27,1.6304]
[1744809247187,26.0,125.31,125.27,14.2166757]
[1744809247391,38.5862757,125.31,125.28,7.98187902]
[1744809248268,82.9,125.37,125.3,12.5862757]
[1744809248472,82.9,125.37,125.29,1.629]
[1744809248473,39.21231444,125.37,125.32,20.56538137]
[1744809248785,26.0,125.36,125.32,20.56538137]
[1744809250392,33.97705656,125.36,125.32,20.56538137]
[1744809251374,46.56333226,125.36,125.32,20.56538137]
[1744809253693,26.0,125.36,125.33,12.5862757]
[1744809254168,26.0,125.35,125.33,12.5862757]
[1744809254586,7.97528642,125.39,125.34,12.5862757]
[1744809254793,105.03616148,125.41,125.36,12.5862757]
[1744809254970,12.5862757,125.38,125.33,12.5862757]
[1744809255370,18.64964886,125.4,125.32,27.9280364]
[1744809255371,12.5862757,125.36,125.32,7.97910567]
[1744809255871,20.5634342,125.36,125.32,7.97910567]
[1744809256370,12.5862757,125.35,125.31,7.97998412]
[1744809256793,12.5862757,125.35,125.31,20.56625982]
[1744809257301,12.5862757,125.35,125.31,7.97998412]
[1744809257472,12.5862757,125.35,125.31,20.56625982]
[1744809257672,20.5634342,125.36,125.31,20.56625982]
[1744809258176,33.97671921,125.37,125.32,12.5862757]
[1744809258376,46.56299491,125.37,125.32,12.5862757]
[1744809259376,46.56299491,125.37,125.32,20.56527885]
[1744809259574,12.5862757,125.36,125.32,20.56527885]
[1744809260084,12.5862757,125.34,125.31,7.97990654]
[1744809260285,12.5862757,125.35,125.31,7.97990654]
[1744809260484,12.5862757,125.35,125.31,20.56618224]
[1744809261190,38.5862757,125.35,125.31,20.56618224]
[1744809261392,26.0,125.35,125.31,20.56618224]
[1744809263898,38.5862757,125.35,125.31,20.56618224]
[1744809265100,26.0,125.35,125.31,20.56618224]
[1744809265597,26.0,125.35,125.32,12.5862757]
[1744809267101,26.0,125.35,125.31,20.56618224]
[1744809267400,26.0,125.35,125.32,12.5862757]
[1744809270598,26.0,125.35,125.32,20.56526644]
[1744809272290,26.0,125.35,125.32,7.97899074]
[1744809276509,38.5862757,125.36,125.32,7.97899074]
[1744809277508,46.56331867,125.36,125.32,7.97899074]
[1744809280595,46.56331867,125.36,125.24,1.0]
[1744809280596,18.64964886,125.32,125.27,7.98261347]
[1744809280785,12.5862757,125.29,125.27,7.98261347]
[1744809281510,12.5862757,125.29,125.26,9.51630713]
[1744809281714,12.5862757,125.28,125.26,7.98310713]
[1744809282599,12.5862757,125.28,125.25,8.06387293]
[1744809284113,12.5862757,125.29,125.25,8.06387293]
[1744809287619,12.5862757,125.28,125.25,8.06387293]
[1744809288044,38.5862757,125.3,125.25,40.61022847]
[1744809288627,12.5862757,125.32,125.27,12.5862757]
[1744809288828,26.0,125.32,125.28,12.5862757]